Cogmind - Beta 12 @@@ ROGUE MODE // 2023.11.16 @ 20:53:47 Player: MARESCHIZO Result: Destroyed by G-47 Trooper with Particle Gun Performance ------------- Evolutions (0) 0 Regions Visited (1) 200 Robots Destroyed (6) 30 Value Destroyed (230) 230 Prototype IDs (0) 0 Alien Tech Used (0) 0 Bonus (0) 0 TOTAL SCORE: 460 Bonus ------- None Cogmind --------- Core Integrity 0/250 Matter 109/300 Energy 160/160 System Corruption 0% Temperature Cool (9) Movement Core (850) Ox16 Location -10/Materials Parts ------- > --- POWER (1) -------- Light Nuclear Core > --- PROPULSION (2) --- (None) > --- UTILITY (2) ------ High-capacity Storage Unit Structural Scanner > --- WEAPON (2) ------- Light Cannon > --- INVENTORY (20) --- (None) Peak State ------------ > --- POWER ------------ Light Nuclear Core > --- PROPULSION ------- Compact Wheel > --- UTILITY ---------- High-capacity Storage Unit Structural Scanner > --- WEAPON ----------- Light Cannon > --- INVENTORY -------- (None) [Rating: 7] Favorites ----------- Power Light Nuclear Core Power Core Light Nuclear Core Propulsion Compact Wheel Wheel Compact Wheel Utility Structural Scanner Device Structural Scanner Storage High-capacity Storage Unit Weapon Light Cannon Ballistic Gun Light Assault Rifle Ballistic Cannon Light Cannon Build | -11 -10 ------- Run | Jun Mat Slots Evolved . | . . Power . | . . Propulsion . | . . Utility . | . . Weapon . | . . Parts Attached 8 | 3 5 Power 1 | . 1 Engine . | . . Core 1 | . 1 Reactor . | . . Propulsion 2 | 2 . Treads . | . . Leg . | . . Wheel 2 | 2 . Hover . | . . Flight . | . . Utility 2 | . 2 Device 1 | . 1 Storage 1 | . 1 Processor . | . . Hackware . | . . Protection . | . . Artifact . | . . Weapon 3 | 1 2 Energy Gun . | . . Energy Cannon . | . . Ballistic Gun 1 | 1 . Ballistic Cannon 2 | . 2 Launcher . | . . Special Weapon . | . . Impact Weapon . | . . Slashing Weapon . | . . Piercing Weapon . | . . Special Melee Weapon . | . . Unidentified Prototypes . | . . Parts Lost 3 | . 3 Power . | . . Propulsion 2 | . 2 Utility . | . . Weapon 1 | . 1 Highest Loss Streak 2 | . 2 To Critical Strikes . | . . Average Slot Usage (%) 65 | . 65 Wheel 22 | . 22 Device 12 | . 12 Storage 9 | . 9 Ballistic Gun 8 | . 8 Ballistic Cannon 10 | . 10 Naked Turns . | . . Heaviest Build 49 | 1 49 Greatest Support 32 | 32 32 Greatest Overweight (x) 16 | . 16 Average Overweight (x) . | . . Largest Inventory Capacity 20 | 5 20 Average Capacity 13 | 5 15 Most Carried 3 | 3 2 Average Carried . | . . Final Capacity 20 | 5 20 Final Carried . | . . Class Distribution -------------------- 100% | Mutant Dominant Class ---------------- Mutant | -10/Materials Resources | -11 -10 ----------- Run | Jun Mat Matter Collected 202 | 102 100 Remotely . | . . Salvage Created 216 | . 216 Parts 10 | . 10 Haulers Intercepted . | . . Recyclers Shooed 1 | . 1 Parts Field Recycled . | . . Retrieved Matter . | . . Parts Self-Destructed . | . . Prevented . | . . Kills | -11 -10 ------- Run | Jun Mat Combat Hostiles Destroyed 6 | . 6 Cannons 6 | . 6 Classes Destroyed 1 | . 1 Grunt 6 | . 6 Best Kill Streak 3 | . 3 Combat Bots Only 3 | . 3 Max Kills in Single Turn 1 | . 1 Gunslinging . | . . Exploded . | . . Melee . | . . Uniques/NPCs Destroyed . | . . Combat | -11 -10 -------- Run | Jun Mat Damage Taken 579 | . 579 Core 254 | . 254 Absorbed by Shields . | . . Core Remaining (%) 100 | 100 . Volleys Fired 17 | . 17 Largest 2 | . 2 Hottest 70 | . 70 Shots Fired 32 | . 32 Gun . | . . Cannon 32 | . 32 Launcher . | . . Special . | . . Kinetic 32 | . 32 Thermal . | . . Explosive . | . . Electromagnetic . | . . Robot Hit Streak 4 | . 4 Robot Miss Streak 1 | . 1 Penetration Max . | . . Secondary Targets . | . . Shots Hit Robots 19 | . 19 Core Hits 8 | . 8 Critical Kills . | . . Critical Parts Destroyed . | . . Critical Strikes 1 | . 1 Blast 1 | . 1 Melee Attacks . | . . Impact . | . . Slashing . | . . Piercing . | . . Sneak Attacks . | . . Combat Hostiles . | . . Follow-up Attacks . | . . Damage Inflicted 337 | . 337 Guns . | . . Cannons 337 | . 337 Explosions . | . . Melee . | . . Ramming . | . . Kinetic 337 | . 337 Thermal . | . . Explosive . | . . Electromagnetic . | . . Impact . | . . Slashing . | . . Piercing . | . . Highest Corruption . | . . Average Corruption . | . . Corruption Purged . | . . Corruption Blocked . | . . Overload Shots . | . . Overflow Damage . | . . Projectiles . | . . Explosions . | . . Melee . | . . Knockbacks 9 | . 9 Impact . | . . Kinetic 8 | . 8 Secondary 1 | . 1 Self-Inflicted Damage . | . . Shots . | . . Rammed . | . . Targets Rammed . | . . Kicked . | . . Crushed . | . . Highest Temperature 38 | . 38 Average Temperature 13 | . 13 Received Heat Transfer 330 | . 330 Siege Activations . | . . Robots Corrupted . | . . Combat Hostiles . | . . Parts Fried . | . . Impact Corruptions . | . . Robots Melted . | . . Combat Hostiles . | . . Parts Melted . | . . Heat Transferred . | . . Parts Sabotaged . | . . Parts Stolen . | . . Parts Stripped . | . . Power Chain Reactions . | . . Missiles Intercepted . | . . Alert | -11 -10 ------- Run | Jun Mat Peak Influence 153 | . 153 Initial . | . . Average 35 | . 42 Maximum Alert Level . | . . Low Security (%) 100 | 100 100 Level 1 . | . . Level 2 . | . . Level 3 . | . . Level 4 . | . . Level 5 . | . . High Security . | . . Max Security . | . . Squads Dispatched . | . . Investigation . | . . Extermination . | . . Reinforcement . | . . Assault . | . . Garrison . | . . Intercept . | . . Searches Triggered . | . . Construction Impeded . | . . Haulers Reinforced . | . . Active Scanning Responses . | . . Cargo Convoy Interrupts . | . . Stealth | -11 -10 --------- Run | Jun Mat Distress Signals 1 | . 1 Communications Jammed . | . . Distress Signals . | . . Times Spotted 11 | . 11 Peak Tracking Total 6 | . 6 Tactical Retreats 2 | . 2 Traps | -11 -10 ------- Run | Jun Mat Traps Triggered . | . . Indirectly . | . . Trap Hack Attempts . | . . Triggered . | . . Disarmed . | . . Reprogrammed . | . . Reused . | . . Traps Extracted . | . . Installed . | . . Triggered . | . . Machines | -11 -10 ---------- Run | Jun Mat Machines Disabled . | . . Max in Single Turn . | . . Machines Repaired . | . . Machines Sabotaged . | . . Overloaded Fab Kills . | . . Hacking | -11 -10 --------- Run | Jun Mat Machines Accessed . | . . Terminals . | . . Fabricators . | . . Repair Stations . | . . Recycling Units . | . . Scanalyzers . | . . Garrison Access . | . . Total Hacks . | . . Successful . | . . Failed . | . . Catastrophic . | . . Database Lockouts . | . . Manual . | . . Terminals . | . . Fabricators . | . . Repair Stations . | . . Recycling Units . | . . Scanalyzers . | . . Garrison Access . | . . Terminal Hacks . | . . Fabricator Hacks . | . . Repair Station Hacks . | . . Recycling Unit Hacks . | . . Scanalyzer . | . . Garrison Access Hacks . | . . Unauthorized Hacks . | . . Terminals . | . . Fabricators . | . . Repair Stations . | . . Recycling Units . | . . Scanalyzers . | . . Garrison Access . | . . Data Cores Recovered . | . . Used . | . . Hacking Detections . | . . Full Trace Events . | . . Feedback Events . | . . Feedback Blocked . | . . Robot Schematics Acquired . | . . Robots Built . | . . Authchips . | . . Time . | . . Total Robot Build Rating . | . . Part Schematics Acquired . | . . Parts Built . | . . Authchips . | . . Time . | . . Total Part Build Rating . | . . Parts Repaired . | . . Time . | . . Parts Recycled . | . . Recycled Matter . | . . Retrieved Matter . | . . Retrieved Components . | . . Parts Scanalyzed . | . . Part Schematics Acquired . | . . Parts Damaged . | . . Bothacking | -11 -10 ------------ Run | Jun Mat Used RIF Installer . | . . Robots Hacked . | . . Non-combat . | . . Combat . | . . Robot Hacks Applied . | . . Relay Couplers Released . | . . Fabnet Peak Effective % . | . . Robots Rewired . | . . Allies Hacked . | . . Hacks Repelled . | . . Allies | -11 -10 -------- Run | Jun Mat Total Allies . | . . Largest Group . | . . Highest-Rated Group . | . . Highest-Rated Ally . | . . Total Orders . | . . Ally Attacks . | . . Total Damage . | . . Kills . | . . Allies Corrupted . | . . Allies Melted . | . . Intel | -11 -10 ------- Run | Jun Mat Robot Analysis Total . | . . Derelict Logs Recovered . | . . Drone Launches . | . . Drone Recoveries . | . . Exploration | -11 -10 ------------- Run | Jun Mat Turns Passed 200 | 31 169 Spaces Moved 130 | 31 99 Core 12 | 11 1 Treads . | . . Legs . | . . Wheels 118 | 20 98 Hover . | . . Flight . | . . Fastest Speed 50 | 50 100 Average Speed 109 | 82 117 Slowest Speed 850 | 100 850 Overloaded Moves . | . . Propulsion Burnouts . | . . Robots Hopped . | . . Cave-ins Triggered . | . . Exploration Rate (%) 14 | 3 25 Regions Visited 1 Branch Regions . Pre-discovered Areas . | . . Known Exits Taken . | . . Unknown Exits Taken 1 | 1 . Scrap Searched . | . . Spaces Dug . | . . Terrain Destroyed . | . . Melee . | . . Projectile . | . . AOE . | . . Terrain Rammed . | . . Walls Destroyed . | . . Machines Disabled . | . . Actions | -11 -10 --------- Run | Jun Mat Total 163 | 36 127 Wait . | . . Move 129 | 30 99 Hop . | . . Pick Up 8 | 3 5 Fast Attach . | . . Attach 8 | 3 5 Detach . | . . Swap . | . . Drop 1 | . 1 Fire 17 | . 17 Melee . | . . Ram . | . . Kick . | . . Crush . | . . Escape Stasis . | . . Rewire . | . . Trap . | . . Miscellaneous . | . . Route ------- -11/Junkyard -10/Materials History --------- Turn | Location | Event 2 | -11/Junkyard | Met Revision 17 16 | -11/Junkyard | Discovered new exit (range 15) 32 | -11/Junkyard | Entered Materials 142 | -10/Materials | Core integrity fell below 50% 191 | -10/Materials | Core integrity fell below 20% 201 | -10/Materials | Destroyed by G-47 Trooper with Particle Gun Last Messages --------------- 00181_ G-47 Trooper knocked back. 00183_ R-06 Scavenger collects Heat Sink. 00184_ G-47 Trooper knocked back. 00188_ R-06 Scavenger collects Sml. Laser. 00189_ R-06 Scavenger collects Ion Engine. 00190_ Lgt. Cannon destroyed. 00190_ G-47 Trooper Imp. Heat Sink blasted off. 00190_ G-47 Trooper knocked back. 00192_ R-06 Scavenger destroyed. 00192_ R-06 Scavenger collects Aluminum Leg. 00193_ G-47 Trooper destroyed. 00194_ K-01 Serf collects debris. 00195_ Acquired 23 matter. 00195_ R-06 Scavenger collects Tractor Beam. 00196_ R-06 Scavenger collects Com. Wheel. 00198_ K-01 Serf collects debris. 00199_ Com. Wheel destroyed. 00199_ R-06 Scavenger collects Heat Sink. 00200_ R-06 Scavenger collects Hover Unit. 00201_ K-01 Serf collects debris. Map ----- +----------------------------------------------------+ | ??????????????????????###### # """ ##?## ##? | | ??????????????????????###! # ##?## ##? | | ??????????????????????##! #####+######### ### | | ??????????????????????##! ########+### | | ??????????????????????##! + ## | | ??????????????????????##! #### """ ## | | ??????????????????????###! ###/##+#### """ ## | | ??????????????????????###### # ## """ ## | | ???????????????????????##### # ## ## | | ??????????????????????????## # ## ## | | ??????????????????????????## # #####/#### | | ??????????????????????????## # """"" ## | | ??????????????????????????## # """"" ##?? ? | | ????????????????????######## # """"" ##? | | ????????????????????######## ###########? ##### | | ????????????????????## # # ##### ##### | | ?????????????? ###### ????? | | ??????????????######## ????? | | ?????????? % ????? | | ????????????? ######## % %##### ##### ????? | | ????????????? ##########+######## ###### ????? | | ???????????????????## =%%=! #### ###?## ?????? | | ???????????????????## % %##?? ##??## ?????? | | ???????????????????## %g * ##??? ##??## ?????? | | ???????????????????## [%]r##??? ^##??## ?????? | | ???????????????????## =@]]k#"???? ##??????????? | | ???????????????????## ]]] #"????? ##??????????? | | ???????????????????## #"????? ##??????????? | | ???????????????????## r #"??????????????????? | | ???????????????????## %#"??????????????????? | | ???????????????????#########+#"??????????????????? | | ??????????????????? #%#"??????????????????? | | ???????????????????????????? ##??????????????????? | | ???????????????????????????? ??????????????????? | | ???????????????????????????? ???????????????????? | | ????????????????????????????? !??????????????????? | | ??????????????????????????????/??????????????????? | | ??????????????????????????????? ?????????????????? | | ?????????????????????????????????????????????????? | | ?????????????????????????????????????????????????? | | ?????????????????????????????????????????????????? | | ?????????????????????????????????????????????????? | | ?????????????????????????????????????????????????? | | ?????????????????????????????????????????????????? | | ?????????????????????????????????????????????????? | | ?????????????????????????????????????????????????? | | ?????????????????????????????????????????????????? | | ?????????????????????????????????????????????????? | | ?????????????????????????????????????????????????? | | ?????????????????????????????????????????????????? | +----------------------------------------------------+ Best States ------------- Heat Dissipation 25 Energy Generation 14 Energy Capacity 160 Matter Stores 172 Matter Capacity 300 Sight Range 16 Terrain Scan Density 10 Evasion (%) 50 Item Schematics ----------------- None Robot Schematics ------------------ None Fabricated ------------ Nothing Alien Tech Used ----------------- None Achievements -------------- None Challenges ------------ None Game ------ Seed SwarmHeartMallet Manual? 0 Play Time 00:03:33 Cumulative 17.6 hours Start 2023.11.16 @ 20:51:47 End 2023.11.16 @ 20:53:47 Sessions 1 Manual Loads 0 Difficulty Rogue Special Mode None Game No. 52 Rogue 12 Adventurer 14 Explorer 26 Win Type - Total 0 Types 0/0/0/0/0/0/0/0/0 Lore% 13 Gallery% 24 Achievement% 19 Wizard Run 0 Options --------- ASCII 0 Keyboard 0 Movement Mouse Keybinds 0 Fullscreen 1 Font 18/SmallcapsGlow Map View 76x50 Tactical HUD 1 Map Filters NONE Filters NONE Steam 1 RUN: 89e7f2a2-2a0d-4b1c-a563-c7b7274832a2